bitfinex-derivatives/quotes_BTCF0:USTF0_20260131
["timestamp","ask_amount","ask_price","bid_price","bid_amount"]
[1769846461066,0.1078,83595.0,83585.0,0.2519339]
[1769846461270,0.1078,83595.0,83586.0,0.23964631]
[1769846461460,0.1078,83595.0,83585.0,0.2519339]
[1769846461957,0.1078,83595.0,83585.0,0.01228759]
[1769846462158,0.1078,83595.0,83583.0,0.23964631]
[1769846464170,0.1078,83595.0,83584.0,0.011983]
[1769846464564,0.1078,83595.0,83584.0,0.30288219]
[1769846464771,0.27031637,83603.0,83586.0,0.29040545]
[1769846467357,0.27031637,83603.0,83588.0,0.25162931]
[1769846468462,0.1078,83604.0,83596.0,0.27725487]
[1769846468663,0.28498435,83611.0,83594.0,0.011982]
[1769846468870,0.28498435,83611.0,83593.0,0.23964631]
[1769846469367,0.28498435,83611.0,83592.0,0.51690118]
[1769846469568,0.28498435,83611.0,83593.0,0.23964631]
[1769846470373,0.28498435,83611.0,83592.0,0.51690118]
[1769846471870,0.28498435,83611.0,83593.0,0.011982]
[1769846472068,0.28498435,83611.0,83593.0,0.28923687]
[1769846474871,0.1078,83614.0,83598.0,0.27725487]
[1769846475170,0.39278435,83614.0,83598.0,0.27725487]
[1769846475872,0.1078,83614.0,83599.0,0.28923587]
[1769846476167,0.28498435,83623.0,83605.0,0.28923487]
[1769846477272,0.28498435,83636.0,83609.0,0.27725487]
[1769846477665,0.28498435,83636.0,83610.0,0.01198]
[1769846478774,0.28498435,83636.0,83611.0,0.27725487]
[1769846478974,0.28498435,83636.0,83613.0,0.28923387]
[1769846479270,0.28498435,83636.0,83613.0,0.27725487]
[1769846479474,0.28498435,83636.0,83616.0,0.27725487]
[1769846479675,0.28498435,83636.0,83622.0,0.011978]
[1769846480772,0.28498435,83636.0,83625.0,0.011977]
[1769846483678,0.28498435,83636.0,83628.0,0.011977]
[1769846485586,3.5e-07,83637.0,83636.0,0.011976]
[1769846487581,0.1078007,83639.0,83636.0,0.011976]
[1769846487779,7e-07,83639.0,83636.0,0.011976]
[1769846488776,7e-07,83639.0,83633.0,0.011976]
[1769846489682,0.28498505,83639.0,83633.0,0.011976]
[1769846491089,5e-08,83639.0,83633.0,0.011976]
[1769846491390,5e-08,83639.0,83619.0,0.1078]
[1769846491889,5e-08,83639.0,83630.0,0.011977]
[1769846496091,0.10776,83641.0,83630.0,0.011977]
[1769846496390,0.10776,83641.0,83635.0,0.011976]
[1769846499192,0.36363749,83641.0,83635.0,0.011976]
[1769846499591,0.10776,83641.0,83635.0,0.011976]
[1769846503198,0.36422822,83641.0,83635.0,0.011976]
[1769846506602,0.10776,83641.0,83635.0,0.011976]
[1769846507202,0.25629854,83640.0,83635.0,0.011976]
[1769846509204,0.10776,83641.0,83635.0,0.011976]
[1769846519211,0.79392765,83644.0,83637.0,0.011976]
[1769846520908,3.1e-07,83645.0,83640.0,0.011975]
[1769846521498,3.1e-07,83645.0,83628.0,0.011977]
[1769846521499,0.095784,83651.0,83637.0,0.27847972]
[1769846521701,0.55,83659.0,83653.0,0.011973]
[1769846522201,0.0644238,83688.0,83668.0,0.011971]
[1769846522509,0.77870328,83687.0,83668.0,0.011971]
[1769846522703,0.67110328,83686.0,83668.0,0.011971]
[1769846522909,0.12086328,83685.0,83668.0,0.011971]
[1769846523110,0.55024,83686.0,83671.0,0.011971]
[1769846523311,0.55024,83686.0,83668.0,0.011971]
[1769846523610,0.55024,83686.0,83656.0,0.011973]
[1769846523611,0.00034562,83685.0,83662.0,0.29988479]
[1769846523909,0.00034562,83685.0,83656.0,0.011973]
[1769846523910,0.00034562,83685.0,83657.0,0.29988479]
[1769846524209,0.00034562,83684.0,83657.0,0.29988479]
[1769846524709,0.00034562,83684.0,83670.0,0.011971]
[1769846524915,0.5506,83684.0,83670.0,0.011971]
[1769846527411,0.5506,83684.0,83649.0,0.23923982]
[1769846527609,0.5506,83684.0,83654.0,0.10776]
[1769846528513,0.011969,83683.0,83656.0,0.011973]
[1769846528713,0.00580343,83682.0,83656.0,0.011973]
[1769846530209,0.00580343,83682.0,83658.0,0.011973]
[1769846530414,0.00680343,83682.0,83658.0,0.011973]
[1769846531412,0.011971,83673.0,83646.0,0.011974]
[1769846531617,0.6588,83672.0,83648.0,0.011974]
[1769846532120,0.011971,83667.0,83645.0,0.011975]
[1769846532918,0.011971,83667.0,83641.0,0.119695]
[1769846533921,0.012971,83667.0,83641.0,0.119695]
[1769846535110,0.011972,83664.0,83630.0,0.3]
[1769846536018,0.011972,83664.0,83636.0,0.011976]
[1769846537119,0.012972,83664.0,83636.0,0.011976]
[1769846537415,0.011972,83661.0,83630.0,0.3]
[1769846537721,0.10772,83660.0,83632.0,0.011976]
[1769846537918,0.31528,83659.0,83632.0,0.011976]
[1769846538316,0.011973,83658.0,83632.0,0.011976]
[1769846538518,0.31528,83659.0,83634.0,0.011976]
[1769846539021,0.31528,83659.0,83637.0,0.011976]
[1769846539520,0.31528,83659.0,83634.0,0.011976]
[1769846540720,0.31628,83659.0,83634.0,0.011976]
[1769846541324,0.327253,83659.0,83634.0,0.011976]
[1769846541524,0.328253,83659.0,83634.0,0.011976]
[1769846543925,0.327253,83659.0,83634.0,0.011976]
[1769846544128,0.328253,83659.0,83634.0,0.011976]
[1769846546727,0.011973,83656.0,83631.0,0.011977]
[1769846547832,0.011973,83654.0,83627.0,0.011977]
[1769846548028,0.011974,83652.0,83627.0,0.011977]
[1769846549830,0.011974,83648.0,83620.0,0.011978]
[1769846550028,0.10776,83647.0,83620.0,0.011978]
[1769846552137,0.011975,83643.0,83616.0,0.011979]
[1769846552328,0.31536,83642.0,83616.0,0.011979]
[1769846553236,0.011975,83640.0,83611.0,0.011979]
[1769846554533,0.011976,83637.0,83611.0,0.011979]
[1769846554734,0.10776,83636.0,83611.0,0.011979]
[1769846554928,0.10776,83636.0,83607.0,0.01198]
[1769846556032,0.011976,83633.0,83607.0,0.01198]
[1769846557237,0.011977,83631.0,83604.0,0.01198]
[1769846557835,0.10776,83636.0,83600.0,0.311981]
[1769846558236,0.011977,83628.0,83600.0,0.311981]
[1769846559237,0.011977,83628.0,83602.0,0.311981]
[1769846564038,0.10776,83636.0,83605.0,0.3]
[1769846564039,0.011977,83631.0,83605.0,0.3]
[1769846565038,0.011976,83634.0,83607.0,0.3]
[1769846565936,0.011976,83634.0,83609.0,0.3]
[1769846566236,0.10776,83636.0,83592.0,0.01227846]
[1769846566237,0.10776,83636.0,83621.0,0.3]
[1769846566929,0.001,83634.0,83621.0,0.3]
[1769846567740,0.10776,83636.0,83621.0,0.3]
[1769846595665,0.10776,83635.0,83621.0,0.3]
[1769846600365,0.10776,83634.0,83621.0,0.3]
[1769846605171,0.10776,83633.0,83621.0,0.3]
[1769846631801,0.10776,83633.0,83619.0,0.23923982]
[1769846631994,0.10776,83633.0,83610.0,0.3]
[1769846635703,0.011977,83630.0,83606.0,0.3]
[1769846636599,0.011977,83627.0,83596.0,0.3]
[1769846638101,0.011978,83624.0,83596.0,0.3]
[1769846638298,0.42324,83623.0,83596.0,0.3]
[1769846638901,0.011978,83618.0,83596.0,0.3]
[1769846639207,0.011978,83618.0,83589.0,0.3]
[1769846639398,0.42324,83623.0,83589.0,0.3]
[1769846641108,0.011979,83617.0,83589.0,0.3]
[1769846647402,0.011979,83613.0,83589.0,0.3]
[1769846647716,0.011979,83611.0,83589.0,0.3]
[1769846652721,0.01198,83609.0,83589.0,0.3]
[1769846657415,0.01198,83607.0,83589.0,0.3]
[1769846657616,0.31548,83606.0,83589.0,0.3]
[1769846657810,0.011981,83597.0,83577.0,0.00011781]
[1769846658016,0.31548,83606.0,83577.0,0.00011781]
[1769846658017,0.1078,83596.0,83577.0,0.00011781]
[1769846659813,0.1078,83596.0,83578.0,0.3]
[1769846668731,0.119782,83596.0,83578.0,0.3]
[1769846669323,0.1078,83596.0,83578.0,0.3]
[1769846669528,0.12497461,83595.0,83569.0,0.3]
[1769846669727,0.12497461,83594.0,83551.0,0.3]
[1769846669934,0.011984,83576.0,83551.0,0.3]
[1769846670232,0.64244,83575.0,83551.0,0.3]
[1769846670629,0.0001141,83574.0,83551.0,0.3]
[1769846672937,0.011985,83573.0,83551.0,0.3]
[1769846673233,0.011986,83568.0,83551.0,0.3]
[1769846681341,0.0001141,83574.0,83551.0,0.3]
[1769846682432,0.0011141,83574.0,83551.0,0.3]
[1769846682939,0.011986,83569.0,83551.0,0.3]
[1769846687544,0.0001141,83574.0,83551.0,0.3]
[1769846687743,0.011987,83560.0,83551.0,0.27639226]
[1769846687950,0.64319781,83559.0,83529.0,0.011991]
[1769846688850,0.011987,83558.0,83527.0,0.01186642]
[1769846689044,0.011987,83558.0,83525.0,0.011992]
[1769846689748,0.011987,83558.0,83526.0,0.3]
[1769846691050,0.011987,83558.0,83531.0,0.3]
[1769846695364,0.64319781,83559.0,83531.0,0.3]
[1769846702471,0.64319781,83559.0,83541.0,0.3]
[1769846702676,0.53644,83561.0,83550.0,0.22294177]
[1769846702876,0.10788,83560.0,83550.0,0.22294177]
[1769846703076,0.32397908,83561.0,83550.0,0.22294177]
[1769846703272,0.10788,83561.0,83550.0,0.22294177]
[1769846703475,0.0303223,83573.0,83550.0,0.20363908]
[1769846703680,0.0303223,83573.0,83564.0,0.08979108]
[1769846703877,0.10788,83578.0,83564.0,0.08979108]
[1769846708583,0.10788,83578.0,83569.0,0.07182652]
[1769846708775,0.10788,83588.0,83569.0,0.07182652]
[1769846712579,0.26273747,83587.0,83569.0,0.07182652]
[1769846712781,0.26321232,83585.0,83569.0,0.07182652]
[1769846713282,0.26321232,83585.0,83567.0,0.10788]
[1769846714289,0.26321232,83585.0,83560.0,0.20363908]
[1769846714884,0.26321232,83585.0,83559.0,0.011987]
[1769846715291,0.26321232,83585.0,83560.0,0.07965361]
[1769846719889,0.10788,83588.0,83564.0,0.011986]
[1769846720094,0.10788,83588.0,83571.0,0.10469849]
[1769846727999,0.10788,83588.0,83569.0,0.011985]
[1769846728000,0.26479476,83587.0,83569.0,0.011985]
[1769846728400,0.26479476,83587.0,83570.0,0.20363908]
[1769846728601,0.26479476,83587.0,83571.0,0.10561571]
[1769846728909,0.10788,83588.0,83571.0,0.10561571]
[1769846730105,0.3726737,83588.0,83571.0,0.10561571]
[1769846730310,0.10788,83588.0,83571.0,0.10561571]
[1769846730510,0.2647937,83587.0,83570.0,0.20363908]
[1769846730809,0.2647937,83587.0,83567.0,0.10784]
[1769846731708,0.2647937,83587.0,83567.0,0.21430568]
[1769846732511,0.2647937,83587.0,83568.0,0.10646568]
[1769846733011,0.10788,83588.0,83568.0,0.10646568]
[1769846733310,0.37196905,83588.0,83571.0,0.10773284]
[1769846733608,0.26408905,83587.0,83571.0,0.10773284]
[1769846739807,0.26408905,83587.0,83570.0,0.20363908]
[1769846741016,0.26408905,83587.0,83566.0,0.08442785]
[1769846741316,0.26408905,83587.0,83570.0,0.20363908]
[1769846741513,0.26408905,83587.0,83566.0,0.08442785]
[1769846742317,0.26408905,83587.0,83566.0,0.32387045]
[1769846743318,0.26408905,83587.0,83566.0,0.2394426]
[1769846743514,0.26408905,83587.0,83562.0,0.10784]
[1769846743515,0.26408905,83587.0,83565.0,0.2394426]
[1769846743710,0.26408905,83587.0,83564.0,0.2394426]
[1769846745019,0.27607205,83587.0,83564.0,0.2394426]
[1769846746721,0.27607205,83587.0,83562.0,0.3472826]
[1769846746923,0.27607205,83587.0,83562.0,0.2394426]
[1769846747316,0.29586532,83583.0,83562.0,0.2394426]
[1769846748623,0.29586532,83581.0,83562.0,0.2394426]
[1769846748820,0.29586532,83581.0,83552.0,0.2394426]
[1769846749018,0.29586532,83581.0,83551.0,0.2394426]
[1769846749320,0.29586532,83581.0,83551.0,0.06792072]
[1769846749521,0.29586532,83577.0,83551.0,0.06792072]
[1769846749731,0.011984,83578.0,83551.0,0.06792072]
[1769846749732,0.29586532,83575.0,83552.0,0.06792072]
[1769846753536,0.005,83584.0,83563.0,0.011986]
[1769846753732,0.005,83584.0,83567.0,0.06142813]
[1769846753934,0.10784,83586.0,83567.0,0.06142813]
[1769846755644,0.10784,83586.0,83569.0,0.0599306]
[1769846755935,0.10784,83586.0,83571.0,0.0599306]
[1769846756332,0.40370532,83586.0,83571.0,0.0599306]
[1769846756737,0.10784,83586.0,83571.0,0.0599306]
[1769846757642,0.40370532,83586.0,83571.0,0.0599306]
[1769846760945,0.29586532,83585.0,83571.0,0.0599306]
[1769846761145,0.10784,83586.0,83571.0,0.0599306]
[1769846761742,0.10784,83586.0,83572.0,0.011985]
[1769846762042,0.10784,83586.0,83572.0,0.05911173]
[1769846762452,0.10784,83586.0,83575.0,0.04712673]
[1769846762639,0.005,83592.0,83580.0,0.04712673]
[1769846762640,0.11284,83592.0,83580.0,0.04712673]
[1769846762945,0.10784,83592.0,83580.0,0.04712673]
[1769846767248,0.29586532,83598.0,83580.0,0.04712673]
[1769846767836,0.10784,83602.0,83586.0,0.011983]
[1769846768143,0.10784,83602.0,83587.0,0.03769779]
[1769846768343,0.39527406,83602.0,83587.0,0.03769779]
[1769846768541,0.10784,83602.0,83589.0,0.03769779]
[1769846769139,0.10784,83602.0,83588.0,0.011983]
[1769846770147,0.10784,83602.0,83588.0,0.04942898]
[1769846771050,0.28730927,83619.0,83593.0,0.03807218]
[1769846771241,0.28730927,83619.0,83605.0,0.01198]
[1769846776649,0.28730927,83619.0,83598.0,0.10784]
[1769846777054,0.28730927,83619.0,83592.0,0.119782]
[1769846779752,0.27074973,83617.0,83592.0,0.1078]
[1769846781457,0.27074973,83617.0,83589.0,0.011983]
[1769846781964,0.54308,83624.0,83585.0,0.011983]
[1769846781965,0.27074973,83615.0,83585.0,0.011983]
[1769846782258,0.011979,83616.0,83585.0,0.011983]
[1769846782259,0.27074973,83613.0,83585.0,0.011983]
[1769846782852,0.27074973,83613.0,83582.0,0.1078]
[1769846784763,0.27074973,83610.0,83582.0,0.1078]
[1769846784952,0.27074973,83608.0,83582.0,0.1078]
[1769846792163,0.27074973,83608.0,83582.0,0.3472426]
[1769846794566,0.27074973,83608.0,83582.0,0.4950259]
[1769846795066,0.27074973,83608.0,83582.0,0.5070089]
[1769846795565,0.27074973,83608.0,83583.0,0.2394426]
[1769846797366,0.27074973,83608.0,83582.0,0.2675663]
[1769846800169,0.27161077,83606.0,83582.0,0.2675663]
[1769846800570,0.27161077,83606.0,83583.0,0.15843227]
[1769846800771,0.27161077,83606.0,83582.0,0.1078]
[1769846800967,0.011981,83602.0,83582.0,0.1078]
[1769846801158,0.011981,83602.0,83574.0,0.15848205]
[1769846801159,0.27161077,83601.0,83574.0,0.15848205]
[1769846802070,0.27161077,83599.0,83574.0,0.15848205]
[1769846805072,0.27161077,83599.0,83575.0,0.17384853]
[1769846805271,0.1078,83607.0,83590.0,0.16186353]
[1769846805470,0.1078,83607.0,83596.0,0.16186353]
[1769846805980,0.1078,83607.0,83598.0,0.16186353]
[1769846820581,0.27161077,83616.0,83598.0,0.16186353]
[1769846821983,0.27161077,83616.0,83599.0,0.011981]
[1769846822171,0.27161077,83616.0,83599.0,0.18267277]
[1769846825584,0.27161077,83616.0,83599.0,0.011981]
[1769846825984,0.27161077,83616.0,83596.0,0.011982]
[1769846826282,0.27161077,83616.0,83591.0,0.011982]
[1769846826671,0.27161077,83616.0,83589.0,0.1078]
[1769846826979,0.27161077,83616.0,83589.0,0.28007539]
[1769846827180,0.27161077,83616.0,83590.0,0.17227539]
[1769846827680,0.011979,83615.0,83590.0,0.17227539]
[1769846827881,0.29403023,83614.0,83590.0,0.17227539]
[1769846828985,0.29403023,83614.0,83589.0,0.1078]
[1769846829188,0.29403023,83612.0,83589.0,0.1078]
[1769846829384,0.29403023,83610.0,83589.0,0.1078]
[1769846829583,0.29403023,83609.0,83589.0,0.1078]
[1769846830277,0.29403023,83607.0,83589.0,0.1078]
[1769846830685,0.29403023,83607.0,83584.0,0.2394426]
[1769846833087,0.29403023,83607.0,83585.0,0.2394426]
[1769846834185,0.29403023,83607.0,83586.0,0.2394426]
[1769846835088,0.29403023,83607.0,83587.0,0.2394426]
[1769846838492,0.29403023,83607.0,83586.0,0.2394426]
[1769846839992,0.29403023,83604.0,83582.0,0.2394426]
[1769846840194,0.29403023,83604.0,83580.0,0.2394426]
[1769846840498,0.29403023,83601.0,83577.0,0.2394426]
[1769846840698,0.29403023,83599.0,83577.0,0.2394426]
[1769846841399,0.29403023,83599.0,83575.0,0.17514515]
[1769846841400,0.29403023,83599.0,83576.0,0.2394426]
[1769846841899,0.29403023,83599.0,83576.0,0.39736469]
[1769846842593,0.1078,83600.0,83569.0,0.29899076]
[1769846842594,0.011982,83592.0,83572.0,0.2394426]
[1769846842789,0.29403023,83590.0,83567.0,0.39736469]
[1769846843100,0.29403023,83584.0,83565.0,0.2394426]
[1769846843289,0.29403023,83584.0,83563.0,0.14746446]
[1769846843290,0.29403023,83583.0,83563.0,0.38690706]
[1769846843891,0.29403023,83583.0,83563.0,0.14746446]
[1769846844195,0.29403023,83583.0,83558.0,0.38690706]
[1769846844497,0.29403023,83583.0,83559.0,0.14746446]
[1769846846396,0.29403023,83583.0,83556.0,0.15115865]
[1769846847090,0.29403023,83583.0,83556.0,0.13917165]
[1769846849499,0.119783,83584.0,83556.0,0.13917165]
[1769846849500,0.29403023,83580.0,83556.0,0.13917165]
[1769846852698,0.29403023,83580.0,83556.0,0.15115865]
[1769846858711,0.29403023,83580.0,83552.0,0.011988]
[1769846859915,0.29434407,83579.0,83552.0,0.011988]
[1769846860210,0.29434407,83572.0,83547.0,0.011988]
[1769846860410,0.29434407,83570.0,83547.0,0.011988]
[1769846861717,0.29434407,83570.0,83544.0,0.13292508]
[1769846862318,0.30632907,83570.0,83544.0,0.13292508]
[1769846864716,0.29434407,83566.0,83540.0,0.14985943]
[1769846864923,0.29434407,83560.0,83536.0,0.15274873]
[1769846865220,0.29434407,83558.0,83536.0,0.15274873]
[1769846867618,0.29434407,83558.0,83530.0,0.13639792]
[1769846867816,0.30633107,83558.0,83533.0,0.011991]
[1769846868816,0.29434407,83558.0,83533.0,0.011991]
[1769846872119,0.29434407,83558.0,83535.0,0.01199]
[1769846873424,0.29434407,83558.0,83530.0,0.13639792]
[1769846873425,0.30633107,83558.0,83531.0,0.011991]
[1769846874524,0.30633107,83558.0,83531.0,0.15338728]
[1769846876226,0.30633107,83558.0,83531.0,0.011991]
[1769846877929,0.29434407,83555.0,83526.0,0.011992]
[1769846878824,0.29434407,83551.0,83520.0,0.15608063]
[1769846879825,0.29434407,83547.0,83520.0,0.15608063]
[1769846880025,0.29434407,83545.0,83520.0,0.15608063]
[1769846880324,0.30633307,83545.0,83520.0,0.011992]
[1769846880528,0.30633307,83545.0,83516.0,0.25264403]
[1769846880529,0.29434407,83540.0,83516.0,0.14476403]
[1769846881329,0.01199,83539.0,83516.0,9.454e-05]
[1769846881627,0.29434407,83538.0,83516.0,9.454e-05]
[1769846883028,0.29434407,83538.0,83516.0,0.14745445]
[1769846883326,0.10788,83546.0,83526.0,0.14735991]
[1769846883726,0.40222407,83546.0,83526.0,0.14735991]
[1769846883927,0.29434407,83545.0,83526.0,0.14735991]
[1769846886633,0.29986736,83549.0,83526.0,0.14735991]
[1769846886929,0.31185536,83554.0,83531.0,0.15253708]
[1769846890232,0.29986736,83551.0,83528.0,0.14499032]
[1769846892839,0.29986736,83551.0,83528.0,0.15698132]
[1769846895342,0.29986736,83549.0,83528.0,0.15698132]
[1769846897338,0.29986736,83549.0,83527.0,0.10788]
[1769846897541,0.29986736,83545.0,83527.0,0.10788]
[1769846899637,0.29986736,83545.0,83523.0,0.011992]
[1769846899835,0.31185636,83545.0,83520.0,0.2394426]
[1769846900033,0.29986736,83544.0,83519.0,0.2514346]
[1769846900243,0.29986736,83544.0,83520.0,0.2394426]
[1769846902832,0.29986736,83544.0,83519.0,0.2514346]
[1769846904140,0.29986736,83544.0,83520.0,0.12616301]
[1769846904344,0.29986736,83544.0,83521.0,0.36560561]
[1769846904550,0.29986736,83544.0,83525.0,0.011992]
[1769846905145,0.46756,83545.0,83517.0,0.2394426]
[1769846905146,0.29986736,83540.0,83517.0,0.2394426]
[1769846905337,0.29986736,83538.0,83516.0,0.23953714]
[1769846905542,0.29986736,83536.0,83516.0,0.23953714]
[1769846906038,0.29986736,83536.0,83516.0,9.454e-05]
[1769846906243,0.29986736,83536.0,83516.0,0.23953714]
[1769846906541,0.29986736,83536.0,83516.0,9.454e-05]
[1769846907342,0.29986736,83536.0,83516.0,0.23567075]
[1769846907535,0.29986736,83536.0,83513.0,0.011993]
[1769846908440,0.29986736,83534.0,83513.0,0.011993]
[1769846914951,0.29986736,83534.0,83516.0,0.011993]
[1769846916253,0.29986736,83534.0,83512.0,0.10788]
[1769846916853,0.29986736,83534.0,83505.0,0.14685004]
[1769846917453,0.29986736,83534.0,83511.0,0.23951212]
[1769846917942,0.29986736,83534.0,83516.0,0.011993]
[1769846922054,0.29986736,83534.0,83519.0,0.011993]
[1769846922655,0.29986736,83534.0,83516.0,0.011993]
[1769846930659,0.10792,83533.0,83516.0,0.011993]
[1769846931461,0.27943307,83532.0,83516.0,0.011993]
[1769846932154,0.10792,83533.0,83506.0,0.29899076]
[1769846932155,0.27943307,83530.0,83506.0,0.29899076]
[1769846932357,0.27943307,83528.0,83506.0,0.011994]
[1769846932655,0.27943307,83528.0,83508.0,0.2839962]
[1769846932855,0.27943307,83528.0,83508.0,0.011994]
[1769846933863,0.27943307,83528.0,83504.0,0.011995]
[1769846936456,0.27943307,83528.0,83504.0,0.2839972]
[1769846936660,0.27943307,83528.0,83506.0,0.011994]
[1769846939167,0.27943307,83528.0,83504.0,0.2720022]
[1769846939664,0.29142407,83528.0,83504.0,0.2720022]
[1769846942469,0.27943307,83532.0,83518.0,0.20373879]
[1769846942659,0.27943307,83532.0,83520.0,0.20373879]
[1769846943562,0.10792,83533.0,83520.0,0.20373879]
[1769846944152,0.10792,83533.0,83518.0,0.2720022]
[1769846944360,0.27943307,83532.0,83520.0,0.20373879]
[1769846944566,0.10792,83533.0,83520.0,0.20373879]
[1769846945363,0.10792,83533.0,83521.0,0.2720022]
[1769846948967,0.10792,83533.0,83520.0,0.20373879]
[1769846949463,0.28330712,83532.0,83512.0,0.011994]
[1769846949665,0.28330712,83532.0,83509.0,0.23951607]
[1769846949858,0.28330712,83532.0,83508.0,0.011994]
[1769846950065,0.28330712,83522.0,83506.0,0.10792]
[1769846950366,0.28330712,83520.0,83506.0,0.10792]
[1769846953769,0.28330712,83520.0,83500.0,0.20373879]
[1769846970585,0.28330712,83520.0,83501.0,0.3024633]
[1769846974999,0.28330712,83520.0,83501.0,0.011995]
[1769846975193,0.28330712,83520.0,83501.0,0.3024633]
[1769846977998,0.28330712,83520.0,83503.0,0.011995]
[1769846978186,0.10792,83519.0,83503.0,0.011995]
[1769846978392,0.27510826,83518.0,83503.0,0.011995]
[1769846978594,0.83218826,83517.0,83503.0,0.011995]
[1769846978796,9.454e-05,83516.0,83503.0,0.011995]
[1769846978998,0.2752028,83516.0,83503.0,0.011995]
[1769846979400,0.2752028,83516.0,83493.0,0.28406737]
[1769846979694,0.2752028,83516.0,83491.0,0.28406737]
[1769846980594,0.2752028,83516.0,83497.0,0.011996]
[1769846982602,0.2871958,83516.0,83497.0,0.011996]
[1769846984795,0.2752028,83516.0,83497.0,0.011996]
[1769846985204,0.2752028,83516.0,83500.0,0.20373879]
[1769846985503,0.2752028,83516.0,83501.0,0.011995]
[1769846985803,9.454e-05,83516.0,83503.0,0.29606237]
[1769846988811,9.454e-05,83516.0,83503.0,0.28406737]
[1769846990308,0.2943266,83516.0,83499.0,0.011995]
[1769846990901,0.2943266,83516.0,83499.0,0.29606237]
[1769846993701,9.454e-05,83516.0,83499.0,0.29606237]
[1769846998411,0.10792,83515.0,83499.0,0.29606237]
[1769847002510,0.29423206,83514.0,83495.0,0.011996]
[1769847003309,0.29423206,83514.0,83495.0,0.29606337]
[1769847003710,0.29423206,83514.0,83492.0,0.10792]
[1769847003914,0.30622506,83514.0,83492.0,0.10792]
[1769847004118,0.30622506,83514.0,83492.0,0.39198737]
[1769847004321,0.30622506,83514.0,83492.0,0.40398337]
[1769847004520,0.29423206,83514.0,83493.0,0.28406737]
[1769847005819,0.29423206,83514.0,83492.0,0.011996]
[1769847006016,0.011994,83512.0,83486.0,0.23983806]
[1769847006211,0.29423206,83511.0,83481.0,0.28406737]
[1769847007119,0.283107,83509.0,83483.0,0.011998]
[1769847008219,0.001,83511.0,83483.0,0.011998]
[1769847008220,0.283107,83507.0,83483.0,0.011998]
[1769847008409,0.283107,83504.0,83480.0,0.00010678]
[1769847008722,0.283107,83502.0,83480.0,0.00010678]
[1769847009115,0.283107,83499.0,83480.0,0.00010678]
[1769847009921,0.283107,83497.0,83471.0,0.011999]
[1769847010813,0.283107,83495.0,83471.0,0.011999]
[1769847011019,0.283107,83493.0,83471.0,0.28541723]
[1769847011222,0.283107,83491.0,83471.0,0.28541723]
[1769847011520,0.10792,83492.0,83478.0,0.27341823]
[1769847011721,0.10792,83492.0,83480.0,0.27341823]
[1769847015123,0.10792,83492.0,83478.0,0.27341823]
[1769847016923,0.283107,83499.0,83478.0,0.27341823]
[1769847018625,0.283107,83499.0,83480.0,0.27341823]
[1769847018927,9.454e-05,83503.0,83489.0,0.27341823]
[1769847019423,9.454e-05,83503.0,83492.0,0.28541423]
[1769847019811,9.454e-05,83503.0,83496.0,0.27341823]
[1769847020218,0.283107,83502.0,83464.0,0.65839336]
[1769847020522,0.283107,83495.0,83464.0,0.3594026]
[1769847020821,0.283107,83493.0,83454.0,0.012002]
[1769847021123,0.283107,83489.0,83448.0,0.012003]
[1769847021324,0.295104,83487.0,83448.0,0.012003]
[1769847021527,0.283107,83480.0,83443.0,0.27341823]
[1769847021716,0.283107,83478.0,83443.0,0.27341823]
[1769847022330,0.283107,83475.0,83443.0,0.27341823]
[1769847022526,0.283107,83473.0,83443.0,0.27341823]
[1769847023225,0.283107,83473.0,83437.0,0.27353879]
[1769847023421,0.283107,83473.0,83439.0,0.27341823]
[1769847024222,0.283107,83473.0,83441.0,0.27341823]
[1769847025025,0.283107,83473.0,83442.0,0.27341823]
[1769847025215,0.31592,83474.0,83442.0,0.27341823]
[1769847025420,0.31592,83474.0,83444.0,0.27341823]
[1769847025623,0.10811497,83479.0,83444.0,0.27341823]
[1769847025925,0.39122197,83479.0,83444.0,0.27341823]
[1769847026121,0.283107,83478.0,83444.0,0.27341823]
[1769847028329,0.283107,83478.0,83446.0,0.27341823]
[1769847029027,0.10811497,83479.0,83449.0,0.27341823]
[1769847029229,0.10811497,83479.0,83452.0,0.27341823]
[1769847029426,0.10811497,83479.0,83454.0,0.27341823]
[1769847029627,0.10811497,83479.0,83457.0,0.27341823]
[1769847030530,0.10811497,83479.0,83459.0,0.27341823]
[1769847030931,0.10811497,83479.0,83463.0,0.27341823]
[1769847031232,0.10796,83486.0,83467.0,0.27341823]
[1769847031426,0.283107,83497.0,83471.0,0.27341823]
[1769847031635,0.10796,83496.0,83471.0,0.27341823]
[1769847031933,0.10796,83496.0,83474.0,0.27341823]
[1769847032128,4.635e-05,83495.0,83474.0,0.27341823]
[1769847032829,4.635e-05,83495.0,83475.0,0.011999]
[1769847033033,4.635e-05,83495.0,83476.0,0.27341823]
[1769847033435,4.635e-05,83495.0,83477.0,0.011999]
[1769847033729,4.635e-05,83495.0,83480.0,0.27341823]
[1769847035636,4.635e-05,83495.0,83481.0,0.011998]
[1769847035836,4.635e-05,83495.0,83481.0,0.28541623]
[1769847037333,4.635e-05,83495.0,83481.0,0.011998]
[1769847037540,0.28802454,83495.0,83469.0,0.27916689]
[1769847037836,0.28802454,83495.0,83477.0,0.29116589]
[1769847041536,0.30002054,83495.0,83477.0,0.27916689]
[1769847041736,0.28802454,83495.0,83477.0,0.27916689]
[1769847042541,0.28802454,83495.0,83477.0,0.29116489]
[1769847042838,0.28802454,83495.0,83480.0,0.011998]
[1769847043233,0.28802454,83495.0,83477.0,0.27916689]
[1769847043432,0.28802454,83495.0,83478.0,0.29824535]
[1769847043632,0.28802454,83495.0,83473.0,0.10796]
[1769847043835,0.28802454,83495.0,83475.0,0.011999]
[1769847044539,0.28802454,83495.0,83475.0,0.29824635]
[1769847045240,0.2821538,83493.0,83473.0,0.10796]
[1769847045437,0.2821538,83491.0,83473.0,0.10796]
[1769847046733,0.2821538,83489.0,83473.0,0.10796]
[1769847052743,0.2821538,83488.0,83473.0,0.10796]
[1769847053243,0.2821538,83488.0,83473.0,0.39420735]
[1769847054146,0.2821538,83488.0,83473.0,0.10796]
[1769847060842,0.2941508,83488.0,83473.0,0.10796]
[1769847062457,0.2941508,83488.0,83470.0,0.49018632]
[1769847064458,0.2821538,83484.0,83470.0,0.20393897]
[1769847065251,0.2821538,83484.0,83470.0,0.49018632]
[1769847067854,0.30743707,83488.0,83470.0,0.49018632]
[1769847068163,0.30743707,83488.0,83471.0,0.27502702]